fUSD/lending_fUSD_20260524
["ID","MTS","AMOUNT","RATE_DAILY","PERIOD"]
[422908439,1779606641000,-594.6,0.00021399,2]
[422908437,1779606641000,-594.6,0.00021399,2]
[422908451,1779606641000,-500.0,0.00021399,2]
[422908444,1779606641000,-500.0,0.00021399,2]
[422908452,1779606641000,-500.0,0.00021399,2]
[422908448,1779606641000,-500.0,0.00021399,2]
[422908445,1779606641000,-500.0,0.00021399,2]
[422908447,1779606641000,-500.0,0.00021399,2]
[422908446,1779606641000,-500.0,0.00021399,2]
[422908449,1779606641000,-500.0,0.00021399,2]
[422908441,1779606641000,-594.6,0.00021399,2]
[422908443,1779606641000,-500.0,0.00021399,2]
[422908433,1779606641000,-594.6,0.00021399,2]
[422908442,1779606641000,-594.6,0.00021399,2]
[422908528,1779606642000,-340.0,0.00022,2]
[422908526,1779606642000,-207.091387,0.00022,2]
[422908520,1779606642000,-1074.357748,0.00022,2]
[422908518,1779606642000,-1074.357748,0.00022,2]
[422908515,1779606642000,-278.721501,0.00022,2]
[422908525,1779606642000,-207.091387,0.00022,2]
[422908521,1779606642000,-2403.583912,0.00022,2]
[422908522,1779606642000,-1074.357748,0.00022,2]
[422908529,1779606642000,-203.0,0.00022,2]
[422908519,1779606642000,-2403.583912,0.00022,2]
[422908530,1779606642000,-206.70320979,0.00022,3]
[422908527,1779606642000,-207.091387,0.00022,2]
[422908524,1779606642000,-207.091387,0.00022,2]
[422908523,1779606642000,-2403.583912,0.00022,2]
[422908542,1779606642000,-317.600489,0.000223,2]
[422908535,1779606642000,-152.912431,0.000221,2]
[422908534,1779606642000,-418.86160912,0.000221,2]
[422908533,1779606642000,-1934.38338736,0.00022022,2]
[422908532,1779606642000,-200.0,0.00022022,2]
[422908543,1779606642000,-317.600489,0.000223,2]
[422908536,1779606642000,-338.828756,0.000221,2]
[422908538,1779606642000,-338.828756,0.000221,2]
[422908539,1779606642000,-338.828756,0.000221,2]
[422908540,1779606642000,-151.0,0.000221,2]
[422908537,1779606642000,-338.828756,0.000221,2]
[422908541,1779606642000,-2018.28304032,0.000222,2]
[422908545,1779606642000,-317.600489,0.000223,2]
[422908517,1779606642000,-2403.583912,0.00022,2]
[422908531,1779606642000,-855.34886071,0.00022007,2]
[422908516,1779606642000,-1074.357748,0.00022,2]
[422908491,1779606642000,-1005.66,0.00021918,2]
[422908510,1779606642000,-155.0,0.00022,2]
[422908490,1779606642000,-232.91054708,0.000219,2]
[422908484,1779606642000,-158.14480742,0.00021594,2]
[422908486,1779606642000,-1529.54151246,0.00021673,2]
[422908487,1779606642000,-2018.28304032,0.000217,2]
[422908485,1779606642000,-276.0,0.00021644,2]
[422908489,1779606642000,-500.0,0.000219,2]
[422908488,1779606642000,-11897.22886493,0.00021737,2]
[422908498,1779606642000,-500.0,0.00021926,2]
[422908501,1779606642000,-500.0,0.00021966,2]
[422908503,1779606642000,-544.91400853,0.00021966,2]
[422908499,1779606642000,-500.0,0.00021966,2]
[422908493,1779606642000,-151.0,0.00021918,2]
[422908544,1779606642000,-317.600489,0.000223,2]
[422908506,1779606642000,-2018.28304032,0.00022,2]
[422908494,1779606642000,-151.0,0.00021918,2]
[422908492,1779606642000,-5000.0,0.00021918,2]
[422908504,1779606642000,-1235.18214925,0.00021977,2]
[422908496,1779606642000,-3078.71,0.00021918,2]
[422908497,1779606642000,-192.47,0.00021918,2]
[422908502,1779606642000,-594.6,0.00021966,2]
[422908505,1779606642000,-203.16638177,0.00021977,2]
[422908508,1779606642000,-193.0,0.00022,2]
[422908507,1779606642000,-409.66875289,0.00022,2]
[422908509,1779606642000,-673.0,0.00022,2]
[422908514,1779606642000,-278.721501,0.00022,2]
[422908512,1779606642000,-278.721501,0.00022,2]
[422908513,1779606642000,-278.721501,0.00022,2]
[422908511,1779606642000,-335.0,0.00022,2]
[422908495,1779606642000,-169.789347,0.00021918,2]
[422908554,1779606642000,-1120.53,0.00022466,2]
[422908500,1779606642000,-516.31,0.00021966,2]
[422908546,1779606642000,-2156.817343,0.000223,2]
[422908587,1779606642000,-594.6,0.0002255,2]
[422908588,1779606642000,-594.6,0.0002255,2]
[422908590,1779606642000,-594.6,0.0002255,2]
[422908589,1779606642000,-594.6,0.0002255,2]
[422908591,1779606642000,-151.0,0.0002255,2]
[422908583,1779606642000,-516.31,0.0002255,2]
[422908586,1779606642000,-594.6,0.0002255,2]
[422908592,1779606642000,-151.0,0.0002255,2]
[422908584,1779606642000,-520.96525379,0.0002255,2]
[422908581,1779606642000,-516.31,0.0002255,2]
[422908585,1779606642000,-594.6,0.0002255,2]
[422908594,1779606642000,-200.0,0.0002257,2]
[422908604,1779606642000,-151.0,0.000228,2]
[422908582,1779606642000,-516.31,0.0002255,2]
[422908605,1779606642000,-151.0,0.000228,2]
[422908596,1779606642000,-500.57694666,0.00022584,2]
[422908597,1779606642000,-182.99,0.00022625,2]
[422908595,1779606642000,-2005.9555727,0.0002257,2]
[422908599,1779606642000,-1246.66,0.00022691,2]
[422908600,1779606642000,-531.91,0.00022691,2]
[422908603,1779606642000,-151.0,0.000228,2]
[422908601,1779606642000,-180.32779079,0.00022724,2]
[422908602,1779606642000,-500.0,0.00022799,2]
[422908598,1779606642000,-285.68,0.00022691,2]
[422908606,1779606642000,-151.0,0.000228,2]
[422908609,1779606642000,-449.164108,0.000228,2]
[422908607,1779606642000,-449.164108,0.000228,2]
[422908547,1779606642000,-2156.817343,0.000223,2]
[422908593,1779606642000,-151.0,0.0002255,2]
[422908576,1779606642000,-500.0,0.0002255,2]
[422908608,1779606642000,-449.164108,0.000228,2]
[422908580,1779606642000,-516.31,0.0002255,2]
[422908573,1779606642000,-500.0,0.0002255,2]
[422908549,1779606642000,-2156.817343,0.000223,2]
[422908553,1779606642000,-846.02,0.00022466,2]
[422908550,1779606642000,-571.8,0.00022353,2]
[422908551,1779606642000,-2018.28304032,0.000224,2]
[422908548,1779606642000,-2156.817343,0.000223,2]
[422908552,1779606642000,-8450.77613235,0.00022459,2]
[422908556,1779606642000,-500.0,0.00022499,2]
[422908563,1779606642000,-3081.4,0.00022499,2]
[422908568,1779606642000,-500.0,0.00022549,2]
[422908565,1779606642000,-1280.88388877,0.00022525,2]
[422908562,1779606642000,-708.24,0.00022499,2]
[422908560,1779606642000,-500.0,0.00022499,2]
[422908558,1779606642000,-500.0,0.00022499,2]
[422908555,1779606642000,-500.0,0.00022499,2]
[422908564,1779606642000,-500.0,0.00022499,2]
[422908557,1779606642000,-500.0,0.00022499,2]
[422908571,1779606642000,-500.0,0.0002255,2]
[422908574,1779606642000,-500.0,0.0002255,2]
[422908578,1779606642000,-516.31,0.0002255,2]
[422908577,1779606642000,-474.62307338,0.0002255,2]
[422908579,1779606642000,-516.31,0.0002255,2]
[422908572,1779606642000,-500.0,0.0002255,2]
[422908569,1779606642000,-500.0,0.00022549,2]
[422908570,1779606642000,-500.0,0.00022549,2]
[422908559,1779606642000,-500.0,0.00022499,2]
[422908561,1779606642000,-500.0,0.00022499,2]
[422908566,1779606642000,-151.0,0.00022548,7]
[422908567,1779606642000,-500.0,0.00022549,2]
[422908575,1779606642000,-500.0,0.0002255,2]
[422908653,1779606643000,-191.33326164,0.0002339,2]
[422908643,1779606643000,-275.944869,0.000231,2]
[422908645,1779606643000,-294.524839,0.000231,2]
[422908652,1779606643000,-150.25647709,0.00023372,2]
[422908647,1779606643000,-294.524839,0.000231,2]
[422908648,1779606643000,-202.64095844,0.00023118,2]
[422908641,1779606643000,-151.0,0.000231,2]
[422908646,1779606643000,-294.524839,0.000231,2]
[422908649,1779606643000,-2080.17592889,0.00023118,2]
[422908638,1779606643000,-203.0,0.00023,2]
[422908644,1779606643000,-294.524839,0.000231,2]
[422908642,1779606643000,-151.0,0.000231,2]
[422908668,1779606643000,-152.0,0.00023649,7]
[422908654,1779606643000,-500.0,0.00023489,2]
[422908656,1779606643000,-500.0,0.00023489,2]
[422908655,1779606643000,-500.0,0.00023489,2]
[422908658,1779606643000,-3081.4,0.00023489,2]
[422908670,1779606643000,-11897.22886493,0.00023705,2]
[422908669,1779606643000,-2157.14243826,0.00023666,2]
[422908661,1779606643000,-151.0,0.0002349,2]
[422908659,1779606643000,-500.0,0.00023489,2]
[422908657,1779606643000,-708.24,0.00023489,2]
[422908664,1779606643000,-151.0,0.0002349,2]
[422908662,1779606643000,-151.0,0.0002349,2]
[422908640,1779606643000,-151.0,0.000231,2]
[422908666,1779606643000,-5530.0,0.000236,5]
[422908650,1779606643000,-5530.0,0.000233,3]
[422908635,1779606643000,-335.0,0.00023,2]
[422908620,1779606643000,-151.0,0.000229,2]
[422908637,1779606643000,-340.0,0.00023,2]
[422908660,1779606643000,-8668.7091465,0.0002349,2]
[422908613,1779606643000,-1163.063031,0.000229,2]
[422908612,1779606643000,-2728.0,0.00022813,2]
[422908616,1779606643000,-151.0,0.000229,2]
[422908614,1779606643000,-1163.063031,0.000229,2]
[422908611,1779606643000,-200.0,0.00022804,2]
[422908610,1779606643000,-449.164108,0.000228,2]
[422908615,1779606643000,-1163.063031,0.000229,2]
[422908618,1779606643000,-151.0,0.000229,2]
[422908619,1779606643000,-151.0,0.000229,2]
[422908617,1779606643000,-1163.063031,0.000229,2]
[422908622,1779606643000,-1208.650807,0.000229,2]
[422908634,1779606643000,-166.71755222,0.00023,2]
[422908623,1779606643000,-1208.650807,0.000229,2]
[422908626,1779606643000,-600.0,0.000229,8]
[422908625,1779606643000,-215408.0,0.000229,2]
[422908627,1779606643000,-151.0,0.00022997,7]
[422908624,1779606643000,-1208.650807,0.000229,2]
[422908628,1779606643000,-516.31,0.00022999,2]
[422908629,1779606643000,-594.6,0.00022999,2]
[422908630,1779606643000,-400.29488049,0.00023,20]
[422908631,1779606643000,-1779.0,0.00023,2]
[422908633,1779606643000,-673.0,0.00023,2]
[422908636,1779606643000,-2000.0,0.00023,2]
[422908632,1779606643000,-193.0,0.00023,2]
[422908639,1779606643000,-480.04211281,0.00023073,2]
[422908621,1779606643000,-1208.650807,0.000229,2]
[422908667,1779606643000,-152.0,0.00023649,7]
[422908663,1779606643000,-151.0,0.0002349,2]
[422908665,1779606643000,-500.0,0.00023514,2]
[422908699,1779606643000,-500.0,0.00024174,2]
[422908700,1779606643000,-500.0,0.00024174,2]
[422908702,1779606643000,-500.0,0.00024174,2]
[422908701,1779606643000,-500.0,0.00024174,2]
[422908706,1779606643000,-500.0,0.00024174,2]
[422908704,1779606643000,-500.0,0.00024174,2]
[422908703,1779606643000,-500.0,0.00024174,2]
[422908708,1779606643000,-500.0,0.00024174,2]
[422908709,1779606643000,-500.0,0.00024174,2]
[422908707,1779606643000,-500.0,0.00024174,2]
[422908705,1779606643000,-500.0,0.00024174,2]
[422908712,1779606643000,-500.0,0.00024174,2]
[422908710,1779606643000,-500.0,0.00024174,2]
[422908715,1779606643000,-1000.0,0.00024174,2]
[422908724,1779606643000,-151.0,0.00024174,2]
[422908716,1779606643000,-1000.0,0.00024174,2]
[422908722,1779606643000,-1026.63897664,0.00024174,2]
[422908717,1779606643000,-1000.0,0.00024174,2]
[422908723,1779606643000,-151.0,0.00024174,2]
[422908718,1779606643000,-1000.0,0.00024174,2]
[422908720,1779606643000,-1000.0,0.00024174,2]
[422908721,1779606643000,-1000.0,0.00024174,2]
[422908719,1779606643000,-1000.0,0.00024174,2]
[422908726,1779606643000,-151.0,0.00024174,2]
[422908727,1779606643000,-338.828756,0.00024174,2]
[422908725,1779606643000,-151.0,0.00024174,2]
[422908714,1779606643000,-1000.0,0.00024174,2]
[422908711,1779606643000,-500.0,0.00024174,2]
[422908713,1779606643000,-284.52615686,0.00024174,2]
[422908694,1779606643000,-500.0,0.00024174,2]
[422908672,1779606643000,-2000.0,0.000238,2]
[422908691,1779606643000,-500.0,0.00024173,2]
[422908682,1779606643000,-200.0,0.00024036,2]
[422908671,1779606643000,-200.0,0.00023798,2]
[422908683,1779606643000,-234.49460301,0.00024168,2]
[422908684,1779606643000,-623.58710447,0.00024168,2]
[422908678,1779606643000,-673.0,0.00024,2]
[422908675,1779606643000,-558.711,0.0002393,2]
[422908676,1779606643000,-558.711,0.0002393,2]
[422908673,1779606643000,-315.0,0.000238,2]
[422908674,1779606643000,-308.0,0.000238,2]
[422908681,1779606643000,-203.0,0.00024,2]
[422908679,1779606643000,-335.0,0.00024,2]
[422908680,1779606643000,-340.0,0.00024,2]
[422908688,1779606643000,-500.0,0.00024173,2]
[422908695,1779606643000,-500.0,0.00024174,2]
[422908677,1779606643000,-193.0,0.00024,2]
[422908690,1779606643000,-500.0,0.00024173,2]
[422908692,1779606643000,-500.0,0.00024174,2]
[422908689,1779606643000,-500.0,0.00024173,2]
[422908687,1779606643000,-594.6,0.00024173,2]
[422908693,1779606643000,-500.0,0.00024174,2]
[422908696,1779606643000,-500.0,0.00024174,2]
[422908697,1779606643000,-500.0,0.00024174,2]
[422908686,1779606643000,-516.31,0.00024173,2]
[422908685,1779606643000,-151.0,0.00024171,7]
[422908698,1779606643000,-500.0,0.00024174,2]
[422908768,1779606644000,-558.71101,0.00024174,2]
[422908772,1779606644000,-317.600489,0.00024174,2]
[422908769,1779606644000,-558.711,0.00024174,2]
[422908776,1779606644000,-2156.817343,0.00024174,2]
[422908766,1779606644000,-558.711,0.00024174,2]
[422908764,1779606644000,-317.600489,0.00024174,2]
[422908771,1779606644000,-317.600489,0.00024174,2]
[422908767,1779606644000,-558.711,0.00024174,2]
[422908765,1779606644000,-317.600489,0.00024174,2]
[422908758,1779606644000,-2403.583912,0.00024174,2]
[422908759,1779606644000,-207.091387,0.00024174,2]
[422908773,1779606644000,-2156.817343,0.00024174,2]
[422908777,1779606644000,-448.57678591,0.00024198,2]
[422908775,1779606644000,-2156.817343,0.00024174,2]
[422908786,1779606644000,-215.34753388,0.0002447,7]
[422908779,1779606644000,-200.0,0.00024276,2]
[422908784,1779606644000,-350.0,0.000244,6]
[422908791,1779606644000,-192.47,0.00024658,15]
[422908780,1779606644000,-571.8,0.00024324,2]
[422908790,1779606644000,-6060.0,0.00024657,2]
[422908783,1779606644000,-218.0,0.00024334,2]
[422908782,1779606644000,-150.0,0.00024334,2]
[422908789,1779606644000,-3635.0,0.00024657,2]
[422908788,1779606644000,-1227.937,0.00024657,2]
[422908778,1779606644000,-2236.95670847,0.00024214,2]
[422908785,1779606644000,-10000.0,0.00024463,7]
[422908787,1779606644000,-2779.0,0.000246,2]
[422908756,1779606644000,-2403.583912,0.00024174,2]
[422908774,1779606644000,-2156.817343,0.00024174,2]
[422908763,1779606644000,-207.091387,0.00024174,2]
[422908729,1779606644000,-338.828756,0.00024174,2]
[422908755,1779606644000,-1074.357748,0.00024174,2]
[422908737,1779606644000,-1543.0,0.00024174,2]
[422908736,1779606644000,-1543.0,0.00024174,2]
[422908781,1779606644000,-280.0,0.00024334,2]
[422908735,1779606644000,-202.8761846,0.00024174,2]
[422908730,1779606644000,-338.828756,0.00024174,2]
[422908728,1779606644000,-338.828756,0.00024174,2]
[422908733,1779606644000,-151.0,0.00024174,2]
[422908731,1779606644000,-1543.0,0.00024174,2]
[422908732,1779606644000,-1543.0,0.00024174,2]
[422908734,1779606644000,-1543.0,0.00024174,2]
[422908749,1779606644000,-278.721501,0.00024174,2]
[422908740,1779606644000,-1543.0,0.00024174,2]
[422908739,1779606644000,-1543.0,0.00024174,2]
[422908761,1779606644000,-207.091387,0.00024174,2]
[422908741,1779606644000,-1543.0,0.00024174,2]
[422908747,1779606644000,-278.721501,0.00024174,2]
[422908750,1779606644000,-278.721501,0.00024174,2]
[422908748,1779606644000,-278.721501,0.00024174,2]
[422908744,1779606644000,-154.0,0.00024174,2]
[422908742,1779606644000,-259.99387698,0.00024174,2]
[422908743,1779606644000,-154.9833366,0.00024174,2]
[422908745,1779606644000,-236.57739677,0.00024174,2]
[422908751,1779606644000,-1074.357748,0.00024174,2]
[422908760,1779606644000,-207.091387,0.00024174,2]
[422908754,1779606644000,-2403.583912,0.00024174,2]
[422908753,1779606644000,-1074.357748,0.00024174,2]
[422908757,1779606644000,-1074.357748,0.00024174,2]
[422908752,1779606644000,-2403.583912,0.00024174,2]
[422908746,1779606644000,-151.0,0.00024174,2]
[422908794,1779606644000,-150.0,0.00024658,4]
[422908738,1779606644000,-1543.0,0.00024174,2]
[422908792,1779606644000,-1487.0,0.00024658,5]
[422908829,1779606644000,-596.21,0.00024999,2]
[422908835,1779606644000,-708.24,0.00024999,2]
[422908846,1779606644000,-151.0,0.00025,2]
[422908845,1779606644000,-151.0,0.00025,2]
[422908837,1779606644000,-3081.4,0.00024999,2]
[422908838,1779606644000,-3081.4,0.00024999,2]
[422908839,1779606644000,-500.0,0.00024999,2]
[422908844,1779606644000,-215.34753388,0.00025,3]
[422908842,1779606644000,-162.51900716,0.00025,2]
[422908836,1779606644000,-708.24,0.00024999,2]
[422908834,1779606644000,-500.0,0.00024999,2]
[422908843,1779606644000,-213959.3791185,0.00025,2]
[422908841,1779606644000,-10000.0,0.00025,3]
[422908828,1779606644000,-500.0,0.00024999,2]
[422908840,1779606644000,-500.0,0.00024999,2]
[422908848,1779606644000,-151.0,0.00025,2]
[422908851,1779606644000,-153.129605,0.00025,2]
[422908850,1779606644000,-151.0,0.00025,2]
[422908853,1779606644000,-198.0,0.00025,2]
[422908857,1779606644000,-2975.29,0.00025,60]
[422908852,1779606644000,-151.0,0.00025,2]
[422908854,1779606644000,-162.0,0.00025,7]
[422908849,1779606644000,-151.0,0.00025,2]
[422908856,1779606644000,-151.0,0.00025,2]
[422908859,1779606644000,-341.0,0.00025,2]
[422908858,1779606644000,-335.0,0.00025,2]
[422908860,1779606644000,-151.0,0.00025,2]
[422908793,1779606644000,-150.0,0.00024658,4]
[422908847,1779606644000,-158.04132,0.00025,2]
[422908826,1779606644000,-500.0,0.00024999,2]
[422908855,1779606644000,-680.88716274,0.00025,2]
[422908831,1779606644000,-500.0,0.00024999,2]
[422908830,1779606644000,-500.0,0.00024999,2]
[422908797,1779606644000,-189.32,0.00024658,2]
[422908795,1779606644000,-150.0,0.00024658,4]
[422908796,1779606644000,-150.0,0.00024658,4]
[422908799,1779606644000,-151.0,0.00024658,2]
[422908806,1779606644000,-162.125466,0.00024658,2]
[422908803,1779606644000,-151.0,0.00024658,2]
[422908805,1779606644000,-151.0,0.00024658,2]
[422908801,1779606644000,-151.0,0.00024658,2]
[422908807,1779606644000,-1000.0,0.00024658,2]
[422908817,1779606644000,-516.31,0.00024999,2]
[422908815,1779606644000,-666.0,0.00024999,2]
[422908816,1779606644000,-516.31,0.00024999,2]
[422908809,1779606644000,-222.1,0.00024658,2]
[422908804,1779606644000,-151.0,0.00024658,2]
[422908819,1779606644000,-516.31,0.00024999,2]
[422908827,1779606644000,-500.0,0.00024999,2]
[422908811,1779606644000,-300.0,0.00024999,10]
[422908823,1779606644000,-594.6,0.00024999,2]
[422908825,1779606644000,-594.78862633,0.00024999,2]
[422908824,1779606644000,-594.6,0.00024999,2]
[422908832,1779606644000,-500.0,0.00024999,2]
[422908833,1779606644000,-500.0,0.00024999,2]
[422908821,1779606644000,-594.6,0.00024999,2]
[422908818,1779606644000,-516.31,0.00024999,2]
[422908810,1779606644000,-2319.72410669,0.00024762,2]
[422908813,1779606644000,-300.0,0.00024999,10]
[422908820,1779606644000,-516.35,0.00024999,2]
[422908808,1779606644000,-224.03,0.00024658,2]
[422908822,1779606644000,-594.6,0.00024999,2]
[422908887,1779606645000,-8450.77613235,0.0002507,2]
[422908891,1779606645000,-156.06399732,0.00025274,7]
[422908881,1779606645000,-151.0,0.00025,2]
[422908883,1779606645000,-151.0,0.00025,2]
[422908889,1779606645000,-500.0,0.00025205,2]
[422908885,1779606645000,-294.524839,0.00025,2]
[422908890,1779606645000,-1487.0,0.00025205,5]
[422908888,1779606645000,-606.0,0.00025082,2]
[422908893,1779606645000,-151.0,0.00025313,7]
[422908898,1779606645000,-2405.68,0.00025656,7]
[422908894,1779606645000,-150.0,0.00025342,4]
[422908900,1779606645000,-317.600489,0.00025674,2]
[422908902,1779606645000,-202.86601978,0.00025674,2]
[422908897,1779606645000,-606.0,0.00025637,2]
[422908895,1779606645000,-2450.0,0.00025546,5]
[422908896,1779606645000,-1000.0,0.000256,2]
[422908884,1779606645000,-294.524839,0.00025,2]
[422908899,1779606645000,-11897.22886493,0.00025674,2]
[422908901,1779606645000,-317.600489,0.00025674,2]
[422908886,1779606645000,-294.524839,0.00025,2]
[422908873,1779606645000,-1163.063031,0.00025,2]
[422908882,1779606645000,-151.0,0.00025,2]
[422908892,1779606645000,-2405.55389863,0.0002531,2]
[422908863,1779606645000,-177.708708,0.00025,2]
[422908865,1779606645000,-449.164108,0.00025,2]
[422908861,1779606645000,-151.0,0.00025,2]
[422908864,1779606645000,-449.164108,0.00025,2]
[422908862,1779606645000,-151.0,0.00025,2]
[422908869,1779606645000,-1163.063031,0.00025,2]
[422908872,1779606645000,-151.0,0.00025,2]
[422908866,1779606645000,-449.164108,0.00025,2]
[422908868,1779606645000,-216.0,0.00025,2]
[422908870,1779606645000,-1163.063031,0.00025,2]
[422908867,1779606645000,-449.164108,0.00025,2]
[422908871,1779606645000,-1163.063031,0.00025,2]
[422908874,1779606645000,-151.0,0.00025,2]
[422908877,1779606645000,-1208.650807,0.00025,2]
[422908875,1779606645000,-151.0,0.00025,2]
[422908876,1779606645000,-151.0,0.00025,2]
[422908878,1779606645000,-1208.650807,0.00025,2]
[422908880,1779606645000,-1208.650807,0.00025,2]
[422908879,1779606645000,-1208.650807,0.00025,2]
[422908903,1779606645000,-294.524839,0.00025,2]
[422908908,1779606645000,-2156.817343,0.00025674,2]
[422908905,1779606645000,-317.600489,0.00025674,2]
[422908929,1779606645000,-1074.357748,0.00025786,2]
[422908928,1779606645000,-2403.583912,0.00025786,2]
[422908934,1779606645000,-207.091387,0.00025786,2]
[422908933,1779606645000,-207.091387,0.00025786,2]
[422908930,1779606645000,-2403.583912,0.00025786,2]
[422908931,1779606645000,-207.091387,0.00025786,2]
[422908935,1779606645000,-3137.52,0.000258,7]
[422908936,1779606645000,-1097.56225646,0.00025858,2]
[422908938,1779606645000,-1755.626,0.00025932,2]
[422908947,1779606645000,-358.39,0.00026122,2]
[422908940,1779606645000,-929.516,0.00025932,2]
[422908939,1779606645000,-1371.906,0.00025932,2]
[422908941,1779606645000,-150.781,0.00025932,2]
[422908944,1779606645000,-7262.85512841,0.00026,5]
[422908945,1779606645000,-150.0,0.00026027,4]
[422908942,1779606645000,-1271.0,0.00025932,2]
[422908943,1779606645000,-169.32,0.00025963,2]
[422908946,1779606645000,-150.0,0.00026027,4]
[422908904,1779606645000,-114.73446922,0.00025674,2]
[422908932,1779606645000,-207.091387,0.00025786,2]
[422908924,1779606645000,-2403.583912,0.00025786,2]
[422908937,1779606645000,-642.88,0.00025932,2]
[422908922,1779606645000,-278.721501,0.00025786,2]
[422908907,1779606645000,-2156.817343,0.00025674,2]
[422908925,1779606645000,-1074.357748,0.00025786,2]
[422908906,1779606645000,-2156.817343,0.00025674,2]
[422908909,1779606645000,-2156.817343,0.00025674,2]
[422908910,1779606645000,-1487.0,0.00025753,5]
[422908916,1779606645000,-338.828756,0.00025786,2]
[422908917,1779606645000,-338.828756,0.00025786,2]
[422908911,1779606645000,-300.0,0.00025785,10]
[422908913,1779606645000,-18084.37,0.00025786,2]
[422908915,1779606645000,-338.828756,0.00025786,2]
[422908914,1779606645000,-338.828756,0.00025786,2]
[422908912,1779606645000,-259.91315185,0.00025785,10]
[422908920,1779606645000,-278.721501,0.00025786,2]
[422908919,1779606645000,-278.721501,0.00025786,2]
[422908921,1779606645000,-278.721501,0.00025786,2]
[422908923,1779606645000,-1074.357748,0.00025786,2]
[422908918,1779606645000,-151.0,0.00025786,2]
[422908926,1779606645000,-2403.583912,0.00025786,2]
[422908927,1779606645000,-1074.357748,0.00025786,2]
[422908983,1779606646000,-206.987241,0.00027397,2]
[422908982,1779606646000,-150.0,0.00027397,7]
[422908984,1779606646000,-206.987241,0.00027397,2]
[422908985,1779606646000,-206.987241,0.00027397,2]
[422908975,1779606646000,-217.0,0.00027171,30]
[422908980,1779606646000,-150.0,0.00027397,7]
[422908977,1779606646000,-606.0,0.00027301,4]
[422908976,1779606646000,-150.0,0.000273,10]
[422908981,1779606646000,-150.0,0.00027397,7]
[422908978,1779606646000,-387.9939,0.00027397,2]
[422908979,1779606646000,-1500.0,0.00027397,2]
[422908997,1779606646000,-206.987241,0.00027397,2]
[422908987,1779606646000,-206.987241,0.00027397,2]
[422908995,1779606646000,-206.987241,0.00027397,2]
[422908988,1779606646000,-206.987241,0.00027397,2]
[422908996,1779606646000,-206.987241,0.00027397,2]
[422908989,1779606646000,-206.987241,0.00027397,2]
[422908990,1779606646000,-206.987241,0.00027397,2]
[422908991,1779606646000,-206.987241,0.00027397,2]
[422908993,1779606646000,-206.987241,0.00027397,2]
[422909000,1779606646000,-151.0,0.00027397,2]
[422908998,1779606646000,-206.987241,0.00027397,2]
[422908994,1779606646000,-206.987241,0.00027397,2]
[422908986,1779606646000,-206.987241,0.00027397,2]
[422908972,1779606646000,-255.0,0.00026947,2]
[422908955,1779606646000,-1018.68692023,0.00026851,5]
[422908974,1779606646000,-448.57678591,0.00027097,2]
[422908999,1779606646000,-300.0,0.00027397,2]
[422908948,1779606646000,-606.0,0.00026192,3]
[422908951,1779606646000,-479.66459124,0.00026314,2]